[Event "HUN-chT Youth 2019"]
[Site "Budapest"]
[Date "2019.10.27"]
[Round "3.6"]
[White "Bod, Marton"]
[Black "Szarvas, Nora"]
[Result "0-1"]
[ECO "B80"]
[WhiteElo "1131"]
[BlackElo "1274"]
[Annotator "NA"]
[PlyCount "108"]
[EventDate "2019.10.26"]
[EventType "team-tourn"]
[EventCountry "HUN"]
[SourceTitle "playchess.com"]
[Source "ChessBase"]
[SourceQuality "1"]
[TimeControl "5400+30"]

1. e4 {[%emt 0:00:00]} c5 {[%emt 0:00:00]} 2. Nf3 {[%emt 0:00:00]} d6 {[%emt 0:00:00]} 3. d4 {[%emt 0:00:00]} cxd4 {[%emt 0:00:00]} 4. Nxd4 {[%emt 0:00:00]} Nf6 {[%emt 0:00:46]} 5. Nc3 {[%emt 0:00:05]} e6 {[%emt 0:03:48]} 6. Bg5 {[%emt 0:00:33]} Be7 {[%emt 0:01:10]} 7. Qd2 {[%emt 0:00:32]} Nbd7 {[%emt 0:01:37]} 8. O-O-O {[%emt 0:00:50]} h6 {[%emt 0:03:56]} 9. Bh4 {[%emt 0:01:24]} Ng4 {[%emt 0:06:13]} 10. Bxe7 {[%emt 0:00:47]} Qxe7 {[%emt 0:00:46]} 11. h3 {[%emt 0:00:39]} Nge5 {[%emt 0:01:55]} 12. Ndb5 {[%emt 0:00:40]} O-O {[%emt 0:03:01]} 13. Nxd6 {[%emt 0:00:20]} Rd8 {[%emt 0:01:34]} 14. f4 {[%emt 0:04:34]} Nc6 {[%emt 0:02:17]} 15. g4 {[%emt 0:01:49]} Nf6 {[%emt 0:03:23]} 16. e5 {[%emt 0:00:37]} Ne8 {[%emt 0:00:26]} 17. f5 {[%emt 0:03:14]} exf5 {[%emt 0:02:28]} 18. Nxf5 {[%emt 0:01:37]} Bxf5 {[%emt 0:01:27]} 19. Qf4 {[%emt 0:03:00]} Rxd1+ {[%emt 0:00:47]} 20. Nxd1 {[%emt 0:00:09]} Bg6 {[%emt 0:00:45]} 21. h4 {[%emt 0:00:19]} Qxe5 {[%emt 0:00:50]} 22. Qxe5 {[%emt 0:00:39]} Nxe5 {[%emt 0:00:09]} 23. h5 {[%emt 0:00:10]} Be4 {[%emt 0:00:17]} 24. Rh2 {[%emt 0:00:11]} Nc6 {[%emt 0:03:19]} 25. Bc4 {[%emt 0:00:21]} Nf6 {[%emt 0:02:14]} 26. Nc3 {[%emt 0:01:18]} Re8 {[%emt 0:04:54]} 27. Nxe4 {[%emt 0:00:34]} Rxe4 {[%emt 0:00:36]} 28. Rd2 {[%emt 0:00:21]} Re1+ {[%emt 0:00:17]} 29. Rd1 {[%emt 0:00:08]} Rxd1+ {[%emt 0:00:03]} 30. Kxd1 {[%emt 0:00:06]} Nxg4 31. Ke2 Nf6 {[%emt 0:00:26]} 32. Kf2 {[%emt 0:00:35]} Nxh5 {[%emt 0:00:09]} 33. c3 {[%emt 0:00:14]} Ne5 {[%emt 0:00:18]} 34. Be2 {[%emt 0:00:12]} Nf4 {[%emt 0:00:17]} 35. Bb5 {[%emt 0:00:16]} Nfd3+ {[%emt 0:00:21]} 36. Ke3 {[%emt 0:00:13]} Nxb2 {[%emt 0:00:23]} 37. a4 {[%emt 0:00:09]} g5 {[%emt 0:00:18]} 38. Ke4 {[%emt 0:00:14]} Nc6 {[%emt 0:00:36]} 39. Bd3 {[%emt 0:00:48]} Nxd3 {[%emt 0:00:13]} 40. Kxd3 {[%emt 0:00:06]} f5 {[%emt 0:00:06]} 41. Ke3 {[%emt 0:00:06]} h5 {[%emt 0:00:07]} 42. Kf3 {[%emt 0:00:04]} h4 {[%emt 0:00:07]} 43. Kg2 {[%emt 0:00:05]} g4 {[%emt 0:00:04]} 44. c4 {[%emt 0:00:06]} f4 {[%emt 0:00:05]} 45. Kg1 {[%emt 0:00:06]} h3 {[%emt 0:00:12]} 46. Kh2 {[%emt 0:00:20]} f3 {[%emt 0:00:27]} 47. Kg1 {[%emt 0:00:05]} g3 {[%emt 0:00:04]} 48. c5 {[%emt 0:00:12]} f2+ {[%emt 0:00:08]} 49. Kf1 {[%emt 0:00:16]} h2 {[%emt 0:00:19]} 50. Ke2 {[%emt 0:00:18]} h1=Q {[%emt 0:00:19]} 51. Kd3 {[%emt 0:00:10]} f1=Q+ {[%emt 0:00:11]} 52. Kc3 {[%emt 0:00:06]} Qhf3+ {[%emt 0:00:07]} 53. Kd2 {[%emt 0:00:17]} Q1e2+ {[%emt 0:00:03]} 54. Kc1 {[%emt 0:00:13]} Qff1# {[%emt 0:00:13]} 0-1

[Event "HUN-chT Youth 2019"]
[Site "Budapest"]
[Date "2019.10.27"]
[Round "3.7"]
[White "Tubak, Daniel"]
[Black "Papp, Bence"]
[Result "1-0"]
[ECO "B07"]
[WhiteElo "2219"]
[BlackElo "2184"]
[Annotator "NA"]
[PlyCount "131"]
[EventDate "2019.10.26"]
[EventType "team-tourn"]
[EventCountry "HUN"]
[SourceTitle "playchess.com"]
[Source "ChessBase"]
[SourceQuality "1"]
[TimeControl "5400+30"]

1. e4 {[%emt 0:00:00]} d6 {[%emt 0:00:00]} 2. d4 {[%emt 0:00:00]} Nf6 {[%emt 0:00:00]} 3. Nc3 {[%emt 0:00:00]} e5 {[%emt 0:00:00]} 4. dxe5 {[%emt 0:03:25]} dxe5 {[%emt 0:00:01]} 5. Qxd8+ {[%emt 0:00:07]} Kxd8 {[%emt 0:00:05]} 6. Bc4 {[%emt 0:00:41]} Be6 {[%emt 0:00:30]} 7. Bxe6 {[%emt 0:00:07]} fxe6 {[%emt 0:00:04]} 8. f3 {[%emt 0:00:33]} Bc5 {[%emt 0:01:34]} 9. Bg5 {[%emt 0:03:41]} Nbd7 {[%emt 0:03:34]} 10. Nge2 {[%emt 0:02:26]} Ke7 {[%emt 0:00:39]} 11. Nc1 {[%emt 0:00:58]} Bd4 {[%emt 0:06:40]} 12. Nd1 {[%emt 0:03:49]} h6 {[%emt 0:03:03]} 13. Be3 {[%emt 0:00:29]} g5 {[%emt 0:01:41]} 14. Nd3 {[%emt 0:03:18]} g4 {[%emt 0:06:19]} 15. c3 {[%emt 0:06:32]} Bb6 {[%emt 0:03:11]} 16. Bxb6 {[%emt 0:00:31]} axb6 {[%emt 0:00:11]} 17. Ne3 {[%emt 0:00:12]} gxf3 {[%emt 0:00:05]} 18. gxf3 {[%emt 0:00:07]} Rhg8 {[%emt 0:02:56]} 19. Ke2 {[%emt 0:00:50]} Nh5 {[%emt 0:01:43]} 20. Ng4 {[%emt 0:09:31]} Nf4+ {[%emt 0:02:16]} 21. Ke3 {[%emt 0:01:36]} Raf8 {[%emt 0:11:34]} 22. Raf1 {[%emt 0:07:52]} Nxd3 {[%emt 0:17:48]} 23. Kxd3 {[%emt 0:00:02]} Nc5+ {[%emt 0:07:18]} 24. Ke3 {[%emt 0:00:36]} Ra8 {[%emt 0:00:22]} 25. a3 {[%emt 0:00:39]} h5 {[%emt 0:01:47]} 26. Nxe5 {[%emt 0:01:56]} Rg2 {[%emt 0:00:19]} 27. Rf2 {[%emt 0:01:27]} Rxf2 {[%emt 0:00:09]} 28. Kxf2 {[%emt 0:00:02]} Kf6 {[%emt 0:00:14]} 29. Nc4 {[%emt 0:16:13]} b5 {[%emt 0:00:33]} 30. Nd2 {[%emt 0:01:30]} Nd3+ {[%emt 0:00:09]} 31. Ke3 {[%emt 0:00:28]} Nxb2 {[%emt 0:00:08]} 32. Rb1 {[%emt 0:00:28]} Nc4+ {[%emt 0:09:15]} 33. Nxc4 {[%emt 0:01:53]} bxc4 {[%emt 0:00:13]} 34. Rxb7 {[%emt 0:00:27]} Rd8 {[%emt 0:00:32]} 35. Rxc7 {[%emt 0:00:48]} Rd3+ {[%emt 0:00:03]} 36. Kf4 {[%emt 0:00:17]} e5+ {[%emt 0:00:17]} 37. Kg3 {[%emt 0:00:24]} Rxc3 {[%emt 0:01:07]} 38. a4 {[%emt 0:01:06]} Ke6 {[%emt 0:08:32]} 39. a5 {[%emt 0:04:07]} Kd6 {[%emt 0:03:00]} 40. Rc8 {[%emt 0:00:37]} Kd7 {[%emt 0:02:16]} 41. Rc5 {[%emt 0:00:02]} Kd6 {[%emt 0:00:11]} 42. Rd5+ {[%emt 0:01:30]} Ke6 {[%emt 0:00:01]} 43. a6 {[%emt 0:00:20]} Ra3 {[%emt 0:00:06]} 44. Rc5 {[%emt 0:00:14]} Rxa6 {[%emt 0:00:50]} 45. Rxc4 {[%emt 0:00:01]} Kf7 {[%emt 0:01:57]} 46. Rc7+ {[%emt 0:00:29]} Kf6 {[%emt 0:01:57]} 47. Rc8 {[%emt 0:00:44]} Re6 {[%emt 0:06:47]} 48. Rf8+ {[%emt 0:00:17]} Kg6 {[%emt 0:00:20]} 49. Rf5 {[%emt 0:00:01]} Re8 {[%emt 0:00:36]} 50. Kh4 {[%emt 0:00:14]} Re7 {[%emt 0:00:50]} 51. Rg5+ {[%emt 0:00:20]} Kf6 {[%emt 0:00:21]} 52. h3 {[%emt 0:00:47]} Ra7 {[%emt 0:00:12]} 53. Kxh5 {[%emt 0:00:21]} Ra1 {[%emt 0:00:22]} 54. Rf5+ {[%emt 0:00:23]} Ke6 {[%emt 0:00:01]} 55. h4 {[%emt 0:00:18]} Rg1 {[%emt 0:01:20]} 56. Rg5 {[%emt 0:00:15]} Rf1 {[%emt 0:00:12]} 57. Rg3 {[%emt 0:00:13]} Kf6 {[%emt 0:00:06]} 58. Kg4 {[%emt 0:00:12]} Rf2 {[%emt 0:00:12]} 59. Rg1 {[%emt 0:00:45]} Kg6 {[%emt 0:00:42]} 60. Ra1 {[%emt 0:00:28]} Rg2+ {[%emt 0:00:43]} 61. Kh3 {[%emt 0:00:02]} Rb2 {[%emt 0:00:51]} 62. Ra6+ {[%emt 0:01:09]} Kh5 {[%emt 0:00:05]} 63. Re6 {[%emt 0:00:58]} Rb5 {[%emt 0:00:04]} 64. Rf6 {[%emt 0:00:24]} Ra5 {[%emt 0:00:12]} 65. Rf5+ {[%emt 0:00:07]} Kh6 {[%emt 0:00:25]} 66. Kg4 {[%emt 0:00:10]} 1-0

[Event "HUN-chT Youth 2019"]
[Site "Budapest"]
[Date "2019.10.27"]
[Round "3.7"]
[White "Turcsanyi, Vince Gergo"]
[Black "Markus, Molli Amina"]
[Result "1/2-1/2"]
[ECO "C00"]
[WhiteElo "1810"]
[BlackElo "1614"]
[Annotator "NA"]
[PlyCount "108"]
[EventDate "2019.10.26"]
[EventType "team-tourn"]
[EventCountry "HUN"]
[SourceTitle "playchess.com"]
[Source "ChessBase"]
[SourceQuality "1"]
[TimeControl "5400+30"]

1. e4 {[%emt 0:00:00]} e6 {[%emt 0:00:00]} 2. Qe2 {[%emt 0:00:00]} d5 {[%emt 0:00:58]} 3. exd5 {[%emt 0:00:54]} Qxd5 {[%emt 0:00:38]} 4. Nc3 {[%emt 0:01:04]} Qd8 {[%emt 0:01:11]} 5. g3 {[%emt 0:00:28]} Nf6 {[%emt 0:00:59]} 6. Bg2 {[%emt 0:00:35]} Be7 {[%emt 0:02:35]} 7. Nf3 {[%emt 0:01:13]} O-O {[%emt 0:00:35]} 8. O-O {[%emt 0:00:32]} c5 {[%emt 0:01:52]} 9. d3 {[%emt 0:05:36]} Nc6 {[%emt 0:03:21]} 10. Rd1 {[%emt 0:03:59]} a6 {[%emt 0:04:26]} 11. a4 {[%emt 0:04:03]} Qc7 {[%emt 0:08:42]} 12. Be3 {[%emt 0:15:18]} Rb8 {[%emt 0:12:07]} 13. d4 {[%emt 0:13:02]} cxd4 {[%emt 0:06:31]} 14. Nxd4 {[%emt 0:01:12]} Nxd4 {[%emt 0:02:24]} 15. Bxd4 {[%emt 0:01:32]} Ra8 {[%emt 0:05:16]} 16. Be5 {[%emt 0:11:58]} Qc5 {[%emt 0:03:42]} 17. Rab1 {[%emt 0:02:34]} Nd7 {[%emt 0:03:25]} 18. Bd4 {[%emt 0:04:25]} Qc7 {[%emt 0:00:53]} 19. Nd5 {[%emt 0:07:51]} exd5 {[%emt 0:06:08]} 20. Qxe7 {[%emt 0:00:10]} Qxc2 {[%emt 0:00:48]} 21. Qg5 {[%emt 0:01:05]} Qg6 {[%emt 0:00:58]} 22. Qxg6 {[%emt 0:00:55]} hxg6 {[%emt 0:00:06]} 23. Bxd5 {[%emt 0:00:16]} Nf6 {[%emt 0:02:24]} 24. Bxf6 {[%emt 0:02:30]} gxf6 {[%emt 0:00:07]} 25. Rbc1 {[%emt 0:00:16]} Rb8 {[%emt 0:00:36]} 26. Rc7 {[%emt 0:01:23]} b6 {[%emt 0:01:30]} 27. Re1 {[%emt 0:00:35]} Bh3 {[%emt 0:04:10]} 28. Ree7 {[%emt 0:10:04]} Rbd8 {[%emt 0:01:26]} 29. Rxf7 {[%emt 0:00:25]} Rxf7 {[%emt 0:01:31]} 30. Bxf7+ {[%emt 0:00:07]} Kh8 {[%emt 0:01:09]} 31. Rc1 {[%emt 0:00:45]} Kg7 {[%emt 0:00:48]} 32. Bb3 {[%emt 0:05:26]} Rd2 {[%emt 0:01:24]} 33. Bc2 {[%emt 0:00:08]} a5 {[%emt 0:01:24]} 34. b3 {[%emt 0:00:33]} Be6 {[%emt 0:04:00]} 35. Kf1 {[%emt 0:02:05]} Rd5 {[%emt 0:03:10]} 36. Rd1 {[%emt 0:03:28]} Rc5 {[%emt 0:01:15]} 37. Rd2 {[%emt 0:00:32]} Rc3 {[%emt 0:00:31]} 38. Kg2 {[%emt 0:01:07]} Bxb3 {[%emt 0:00:15]} 39. Bxb3 {[%emt 0:00:10]} Rxb3 {[%emt 0:00:06]} 40. Ra2 {[%emt 0:00:35]} Kf7 {[%emt 0:00:32]} 41. h4 {[%emt 0:00:38]} Ke6 {[%emt 0:01:14]} 42. g4 {[%emt 0:00:15]} Ke5 {[%emt 0:01:37]} 43. f3 {[%emt 0:00:57]} Kf4 {[%emt 0:00:46]} 44. Rc2 {[%emt 0:00:06]} Rb4 {[%emt 0:01:02]} 45. Ra2 {[%emt 0:00:09]} Ke5 {[%emt 0:02:47]} 46. Kg3 {[%emt 0:00:21]} f5 {[%emt 0:01:37]} 47. h5 {[%emt 0:01:23]} gxh5 {[%emt 0:00:56]} 48. gxh5 {[%emt 0:00:09]} Kf6 {[%emt 0:00:13]} 49. Rh2 {[%emt 0:01:00]} Kg7 {[%emt 0:00:11]} 50. Rd2 {[%emt 0:00:37]} Kh6 {[%emt 0:01:28]} 51. Rd5 {[%emt 0:00:24]} Kxh5 {[%emt 0:01:55]} 52. Rxf5+ {[%emt 0:00:06]} Kg6 {[%emt 0:00:05]} 53. Rd5 {[%emt 0:00:10]} Rxa4 {[%emt 0:00:51]} 54. Rd6+ {[%emt 0:00:04]} Kf5 {[%emt 0:00:09]} 1/2-1/2

[Event "HUN-chT Youth 2019"]
[Site "Budapest"]
[Date "2019.10.27"]
[Round "3.8"]
[White "Leszko, Bence"]
[Black "Kelemen, David"]
[Result "1-0"]
[ECO "B31"]
[WhiteElo "2201"]
[BlackElo "2166"]
[Annotator "NA"]
[PlyCount "117"]
[EventDate "2019.10.26"]
[EventType "team-tourn"]
[EventCountry "HUN"]
[SourceTitle "playchess.com"]
[Source "ChessBase"]
[SourceQuality "1"]
[TimeControl "5400+30"]

1. e4 {[%emt 0:00:00]} c5 {[%emt 0:00:00]} 2. Nf3 {[%emt 0:00:00]} Nc6 {[%emt 0:00:00]} 3. Bb5 {[%emt 0:00:00]} g6 {[%emt 0:00:00]} 4. Bxc6 {[%emt 0:00:00]} dxc6 {[%emt 0:00:00]} 5. d3 {[%emt 0:00:08]} Bg7 {[%emt 0:00:00]} 6. O-O {[%emt 0:00:09]} Nf6 {[%emt 0:00:07]} 7. Nc3 {[%emt 0:00:08]} O-O {[%emt 0:00:09]} 8. Be3 {[%emt 0:00:07]} Nd7 {[%emt 0:00:12]} 9. Qd2 {[%emt 0:00:06]} e5 {[%emt 0:00:20]} 10. Bh6 {[%emt 0:00:22]} Re8 {[%emt 0:01:47]} 11. Bxg7 {[%emt 0:00:12]} Kxg7 {[%emt 0:00:02]} 12. a3 {[%emt 0:00:24]} Nf8 {[%emt 0:05:02]} 13. b4 {[%emt 0:03:51]} Bg4 {[%emt 0:19:04]} 14. Ne1 {[%emt 0:01:05]} cxb4 {[%emt 0:09:47]} 15. axb4 {[%emt 0:00:09]} Qd4 {[%emt 0:00:18]} 16. Rb1 {[%emt 0:01:56]} Rad8 {[%emt 0:01:33]} 17. h3 {[%emt 0:00:15]} Bc8 {[%emt 0:00:23]} 18. Nf3 {[%emt 0:00:55]} Qd6 {[%emt 0:01:33]} 19. Qe3 {[%emt 0:00:51]} a6 {[%emt 0:04:16]} 20. Ne2 {[%emt 0:02:25]} Ne6 {[%emt 0:08:26]} 21. Nd2 {[%emt 0:02:19]} Nf4 {[%emt 0:10:30]} 22. Nc4 {[%emt 0:02:30]} Qf6 {[%emt 0:02:29]} 23. Nxf4 {[%emt 0:00:09]} exf4 {[%emt 0:00:36]} 24. Qf3 {[%emt 0:01:50]} g5 {[%emt 0:09:26]} 25. e5 {[%emt 0:02:42]} Qg6 {[%emt 0:01:08]} 26. Rfe1 {[%emt 0:00:55]} Re7 {[%emt 0:07:37]} 27. Nd6 {[%emt 0:01:23]} Be6 {[%emt 0:01:21]} 28. Qe4 {[%emt 0:01:49]} Qxe4 {[%emt 0:01:51]} 29. Rxe4 {[%emt 0:03:10]} Kg6 {[%emt 0:04:55]} 30. f3 {[%emt 0:06:58]} f6 {[%emt 0:06:54]} 31. exf6 {[%emt 0:12:26]} Kxf6 {[%emt 0:01:07]} 32. Rd4 {[%emt 0:04:27]} Red7 {[%emt 0:03:29]} 33. Ne4+ {[%emt 0:00:27]} Kf5 {[%emt 0:00:18]} 34. Rxd7 {[%emt 0:02:03]} Rxd7 {[%emt 0:00:25]} 35. Re1 {[%emt 0:01:02]} b6 {[%emt 0:01:20]} 36. Nxg5 {[%emt 0:00:19]} Kxg5 {[%emt 0:00:53]} 37. Rxe6 {[%emt 0:00:08]} Rc7 {[%emt 0:00:25]} 38. d4 {[%emt 0:01:38]} c5 {[%emt 0:00:42]} 39. dxc5 {[%emt 0:02:11]} bxc5 {[%emt 0:00:03]} 40. Re5+ {[%emt 0:00:28]} Kf6 {[%emt 0:00:06]} 41. Re4 {[%emt 0:00:03]} cxb4 {[%emt 0:00:52]} 42. Rxf4+ {[%emt 0:00:36]} Ke5 {[%emt 0:00:35]} 43. Rxb4 {[%emt 0:00:27]} Rxc2 {[%emt 0:00:05]} 44. Ra4 {[%emt 0:02:42]} Rc6 {[%emt 0:00:01]} 45. f4+ {[%emt 0:01:20]} Kd5 {[%emt 0:01:09]} 46. Kh2 {[%emt 0:00:30]} Kc5 {[%emt 0:00:06]} 47. g4 {[%emt 0:00:04]} Kb5 {[%emt 0:00:07]} 48. Ra1 {[%emt 0:00:05]} a5 {[%emt 0:00:34]} 49. f5 {[%emt 0:00:10]} Rf6 {[%emt 0:01:50]} 50. Kg3 {[%emt 0:00:22]} a4 {[%emt 0:00:08]} 51. Kf4 {[%emt 0:00:06]} Kb4 {[%emt 0:00:11]} 52. g5 {[%emt 0:00:17]} Rf8 {[%emt 0:00:07]} 53. f6 {[%emt 0:00:11]} Kb3 {[%emt 0:00:21]} 54. Kf5 {[%emt 0:00:34]} a3 {[%emt 0:00:28]} 55. h4 {[%emt 0:00:08]} Kb2 {[%emt 0:00:18]} 56. Rxa3 {[%emt 0:00:35]} Kxa3 {[%emt 0:00:05]} 57. h5 {[%emt 0:00:21]} Kb4 {[%emt 0:01:06]} 58. g6 {[%emt 0:00:06]} Rc8 {[%emt 0:00:50]} 59. f7 {[%emt 0:00:17]} 1-0

[Event "HUN-chT Youth 2019"]
[Site "Budapest"]
[Date "2019.10.27"]
[Round "3.8"]
[White "Vadkerti, Vince"]
[Black "Lazsadi, Kerka Lilla"]
[Result "0-1"]
[ECO "C05"]
[WhiteElo "1531"]
[BlackElo "1561"]
[Annotator "NA"]
[PlyCount "54"]
[EventDate "2019.10.26"]
[EventType "team-tourn"]
[EventCountry "HUN"]
[SourceTitle "playchess.com"]
[Source "ChessBase"]
[SourceQuality "1"]
[TimeControl "5400+30"]

1. e4 {[%emt 0:00:00]} e6 {[%emt 0:00:00]} 2. d4 {[%emt 0:00:00]} d5 {[%emt 0:00:10]} 3. Nd2 {[%emt 0:00:01]} Nf6 {[%emt 0:00:36]} 4. e5 {[%emt 0:00:43]} Nfd7 {[%emt 0:00:44]} 5. Ngf3 {[%emt 0:01:59]} c5 {[%emt 0:01:45]} 6. c3 {[%emt 0:00:35]} Nc6 {[%emt 0:01:15]} 7. b3 {[%emt 0:03:06]} Qb6 {[%emt 0:02:51]} 8. Bb2 {[%emt 0:01:07]} Be7 {[%emt 0:02:16]} 9. Bd3 {[%emt 0:03:38]} O-O {[%emt 0:03:54]} 10. O-O {[%emt 0:03:11]} f6 {[%emt 0:03:11]} 11. Qc2 {[%emt 0:04:42]} f5 {[%emt 0:03:30]} 12. Rfe1 {[%emt 0:05:39]} cxd4 {[%emt 0:05:10]} 13. cxd4 {[%emt 0:00:22]} Nb4 {[%emt 0:02:25]} 14. Qb1 {[%emt 0:00:36]} Re8 {[%emt 0:02:20]} 15. a3 {[%emt 0:05:09]} Nxd3 {[%emt 0:01:30]} 16. Qxd3 {[%emt 0:00:45]} Nf8 {[%emt 0:01:05]} 17. a4 {[%emt 0:09:10]} Bd7 {[%emt 0:03:59]} 18. a5 {[%emt 0:06:58]} Qb5 {[%emt 0:03:26]} 19. Qxb5 {[%emt 0:00:50]} Bxb5 {[%emt 0:00:55]} 20. Ba3 {[%emt 0:02:02]} Bxa3 {[%emt 0:01:57]} 21. Rxa3 {[%emt 0:00:26]} Rac8 {[%emt 0:02:36]} 22. Raa1 {[%emt 0:14:12]} Nd7 {[%emt 0:02:53]} 23. Rac1 {[%emt 0:01:06]} Nb8 {[%emt 0:02:00]} 24. Ng5 {[%emt 0:03:06]} Nc6 {[%emt 0:01:20]} 25. b4 {[%emt 0:02:33]} Nxd4 {[%emt 0:00:41]} 26. Ngf3 {[%emt 0:02:46]} Rxc1 {[%emt 0:00:11]} 27. Rxc1 {[%emt 0:00:14]} Ne2+ {[%emt 0:00:02]} 0-1

[Event "HUN-chT Youth 2019"]
[Site "Budapest"]
[Date "2019.10.27"]
[Round "3.9"]
[White "Koszta, Benedek"]
[Black "Tapodi, Norman Lajos"]
[Result "1/2-1/2"]
[ECO "B90"]
[WhiteElo "2043"]
[BlackElo "2102"]
[Annotator "NA"]
[PlyCount "45"]
[EventDate "2019.10.26"]
[EventType "team-tourn"]
[EventCountry "HUN"]
[SourceTitle "playchess.com"]
[Source "ChessBase"]
[SourceQuality "1"]
[TimeControl "5400+30"]

1. e4 {[%emt 0:00:00]} c5 {[%emt 0:00:00]} 2. Nf3 {[%emt 0:00:00]} d6 {[%emt 0:00:19]} 3. d4 {[%emt 0:00:00]} cxd4 {[%emt 0:00:08]} 4. Nxd4 {[%emt 0:00:05]} Nf6 {[%emt 0:00:16]} 5. Nc3 {[%emt 0:00:25]} a6 {[%emt 0:00:24]} 6. Be3 {[%emt 0:00:27]} e5 {[%emt 0:01:34]} 7. Nb3 {[%emt 0:00:26]} Be7 {[%emt 0:00:33]} 8. f3 {[%emt 0:00:22]} Be6 {[%emt 0:00:19]} 9. Qd2 {[%emt 0:00:26]} O-O {[%emt 0:00:34]} 10. O-O-O {[%emt 0:00:55]} b5 {[%emt 0:03:15]} 11. g4 {[%emt 0:02:56]} b4 {[%emt 0:01:09]} 12. Nd5 {[%emt 0:02:13]} Bxd5 {[%emt 0:00:31]} 13. exd5 {[%emt 0:00:11]} a5 {[%emt 0:01:03]} 14. Kb1 {[%emt 0:02:30]} a4 {[%emt 0:02:52]} 15. Nc1 {[%emt 0:00:59]} Qa5 {[%emt 0:00:27]} 16. g5 {[%emt 0:04:58]} Nfd7 {[%emt 0:05:51]} 17. h4 {[%emt 0:03:43]} Na6 {[%emt 0:04:21]} 18. Bxa6 {[%emt 0:02:29]} Rxa6 {[%emt 0:01:05]} 19. h5 {[%emt 0:03:15]} Nc5 {[%emt 0:20:16]} 20. g6 {[%emt 0:17:50]} Bf6 {[%emt 0:19:06]} 21. gxh7+ {[%emt 0:09:13]} Kh8 {[%emt 0:01:00]} 22. Bg5 {[%emt 0:00:51]} Qd8 {[%emt 0:05:22]} 23. Be3 {[%emt 0:07:49]} 1/2-1/2

[Event "HUN-chT Youth 2019"]
[Site "Budapest"]
[Date "2019.10.27"]
[Round "3.9"]
[White "Kovacs, Kristof"]
[Black "Puskas, Mihaly"]
[Result "1/2-1/2"]
[ECO "C70"]
[WhiteElo "1547"]
[BlackElo "1480"]
[Annotator "NA"]
[PlyCount "57"]
[EventDate "2019.10.26"]
[EventType "team-tourn"]
[EventCountry "HUN"]
[SourceTitle "playchess.com"]
[Source "ChessBase"]
[SourceQuality "1"]
[TimeControl "5400+30"]

1. e4 {[%emt 0:00:00]} e5 {[%emt 0:00:00]} 2. Nf3 {[%emt 0:00:00]} Nc6 {[%emt 0:00:00]} 3. Bb5 {[%emt 0:00:00]} a6 {[%emt 0:00:06]} 4. Ba4 {[%emt 0:00:07]} b5 {[%emt 0:00:15]} 5. Bb3 {[%emt 0:00:12]} d6 {[%emt 0:00:32]} 6. O-O {[%emt 0:01:46]} Bg4 {[%emt 0:00:20]} 7. c3 {[%emt 0:00:08]} Nf6 {[%emt 0:00:37]} 8. d3 {[%emt 0:03:43]} Qd7 {[%emt 0:01:31]} 9. Bg5 {[%emt 0:02:10]} Be7 {[%emt 0:00:23]} 10. a4 {[%emt 0:01:23]} O-O {[%emt 0:01:24]} 11. Nbd2 {[%emt 0:02:10]} h6 {[%emt 0:01:35]} 12. Be3 {[%emt 0:01:47]} Na5 {[%emt 0:08:45]} 13. Bc2 {[%emt 0:00:30]} c6 {[%emt 0:03:35]} 14. Qe2 {[%emt 0:03:02]} d5 {[%emt 0:01:41]} 15. Rfd1 {[%emt 0:02:55]} Qe6 {[%emt 0:04:36]} 16. b4 {[%emt 0:02:13]} Nb7 {[%emt 0:00:22]} 17. Nf1 {[%emt 0:00:29]} Rfd8 {[%emt 0:04:00]} 18. Ng3 {[%emt 0:00:35]} c5 {[%emt 0:04:29]} 19. bxc5 {[%emt 0:01:19]} Nxc5 {[%emt 0:01:40]} 20. Bxc5 {[%emt 0:00:43]} Bxc5 {[%emt 0:00:10]} 21. d4 {[%emt 0:00:25]} exd4 {[%emt 0:01:28]} 22. e5 {[%emt 0:01:44]} Bxf3 {[%emt 0:03:40]} 23. Qxf3 {[%emt 0:00:30]} Qxe5 {[%emt 0:00:28]} 24. cxd4 {[%emt 0:01:51]} Bxd4 {[%emt 0:00:23]} 25. Re1 {[%emt 0:00:37]} Bxa1 {[%emt 0:06:46]} 26. Rxe5 {[%emt 0:00:14]} Bxe5 {[%emt 0:00:12]} 27. Nf5 {[%emt 0:00:42]} Kf8 {[%emt 0:03:31]} 28. axb5 {[%emt 0:01:24]} axb5 {[%emt 0:00:31]} 29. g3 {[%emt 0:00:42]} 1/2-1/2

[Event "HUN-chT Youth 2019"]
[Site "Budapest"]
[Date "2019.10.27"]
[Round "3.10"]
[White "Daroczi, Donat"]
[Black "Megyaszai, Balazs"]
[Result "1-0"]
[ECO "D37"]
[WhiteElo "1976"]
[BlackElo "1894"]
[Annotator "NA"]
[PlyCount "75"]
[EventDate "2019.10.26"]
[EventType "team-tourn"]
[EventCountry "HUN"]
[SourceTitle "playchess.com"]
[Source "ChessBase"]
[SourceQuality "1"]
[TimeControl "5400+30"]

1. d4 {[%emt 0:00:00]} d5 {[%emt 0:00:00]} 2. c4 {[%emt 0:00:00]} e6 {[%emt 0:00:30]} 3. Nc3 {[%emt 0:00:00]} Nf6 {[%emt 0:00:38]} 4. Nf3 {[%emt 0:00:00]} Be7 {[%emt 0:00:40]} 5. Bf4 {[%emt 0:00:00]} c6 {[%emt 0:00:46]} 6. e3 {[%emt 0:00:08]} O-O {[%emt 0:00:32]} 7. h3 {[%emt 0:00:03]} Nbd7 {[%emt 0:01:09]} 8. Qc2 {[%emt 0:00:06]} Re8 {[%emt 0:00:57]} 9. c5 {[%emt 0:01:22]} b6 {[%emt 0:03:29]} 10. cxb6 {[%emt 0:06:44]} axb6 {[%emt 0:02:03]} 11. a4 {[%emt 0:05:07]} Bb7 {[%emt 0:06:49]} 12. Bd3 {[%emt 0:06:20]} h6 {[%emt 0:03:28]} 13. O-O {[%emt 0:03:22]} Rc8 {[%emt 0:02:05]} 14. Qb1 {[%emt 0:12:21]} Nf8 {[%emt 0:05:24]} 15. Ne5 {[%emt 0:05:31]} Bd6 {[%emt 0:03:58]} 16. Rc1 {[%emt 0:07:19]} Qe7 {[%emt 0:03:36]} 17. Bh2 {[%emt 0:06:40]} Red8 {[%emt 0:06:18]} 18. b3 {[%emt 0:00:48]} c5 {[%emt 0:04:29]} 19. Nb5 {[%emt 0:00:22]} Bb8 {[%emt 0:02:42]} 20. Qb2 {[%emt 0:06:09]} Ne8 {[%emt 0:07:33]} 21. Nf3 {[%emt 0:04:32]} Bxh2+ {[%emt 0:02:09]} 22. Kxh2 {[%emt 0:00:37]} Nd6 {[%emt 0:02:31]} 23. Kg1 {[%emt 0:02:29]} Nd7 {[%emt 0:10:16]} 24. a5 {[%emt 0:05:25]} bxa5 {[%emt 0:03:33]} 25. Rxa5 {[%emt 0:00:21]} cxd4 {[%emt 0:06:31]} 26. Rxc8 {[%emt 0:05:29]} Nxc8 {[%emt 0:01:56]} 27. Nfxd4 {[%emt 0:00:14]} Nf6 {[%emt 0:02:32]} 28. Qc2 {[%emt 0:03:34]} Qd7 {[%emt 0:03:15]} 29. Qd2 {[%emt 0:04:29]} Ne7 {[%emt 0:02:42]} 30. Ra7 {[%emt 0:02:17]} Nc6 {[%emt 0:01:22]} 31. Nxc6 {[%emt 0:00:13]} Qxc6 {[%emt 0:00:01]} 32. Qa5 {[%emt 0:00:20]} Rf8 {[%emt 0:01:09]} 33. Nd4 {[%emt 0:03:08]} Qc1+ {[%emt 0:00:15]} 34. Kh2 {[%emt 0:00:01]} Bc8 {[%emt 0:01:14]} 35. Rc7 {[%emt 0:01:29]} Qd1 {[%emt 0:02:01]} 36. Qc3 {[%emt 0:00:11]} Bd7 {[%emt 0:00:53]} 37. Ra7 {[%emt 0:00:58]} Rc8 {[%emt 0:01:33]} 38. Rxd7 {[%emt 0:00:12]} 1-0